bitfinex/quotes_SOLUSD_20260217
["timestamp","ask_amount","ask_price","bid_price","bid_amount"]
[1771355786160,11.67024554,85.688,85.653,0.47553164]
[1771355786364,0.49158078,85.687,85.653,0.47553164]
[1771355786851,0.49158078,85.679,85.644,0.47553164]
[1771355787639,0.49158078,85.669,85.64,22.8761133]
[1771355787957,0.49158078,85.669,85.64,34.55280674]
[1771355788344,0.49158078,85.669,85.64,15.86]
[1771355789057,0.49158078,85.669,85.641,11.6766502]
[1771355789264,0.49158078,85.669,85.64,15.86]
[1771355789559,0.49158078,85.698,85.66,7.0161133]
[1771355789768,0.49158078,85.689,85.66,7.0161133]
[1771355789971,0.49158078,85.689,85.65,7.0161133]
[1771355790168,0.49158078,85.689,85.651,11.67528692]
[1771355790671,0.49158078,85.689,85.651,12.15081856]
[1771355791859,7.0161133,85.69,85.648,15.86]
[1771355791860,0.49158078,85.679,85.648,15.86]
[1771355792156,0.49158078,85.679,85.65,7.0161133]
[1771355792658,0.49158078,85.679,85.643,11.67631107]
[1771355792864,40.84585939,85.688,85.63,16.08]
[1771355792865,0.49158078,85.669,85.63,7.2161133]
[1771355793051,0.49158078,85.669,85.63,18.89419042]
[1771355793361,0.49158078,85.679,85.641,0.47553164]
[1771355793761,40.85062675,85.678,85.641,0.47553164]
[1771355793965,0.49158078,85.669,85.64,7.0161133]
[1771355794164,40.85062675,85.678,85.631,15.88]
[1771355794165,0.49158078,85.659,85.631,15.88]
[1771355794664,40.85062675,85.678,85.63,0.2]
[1771355794665,0.49158078,85.649,85.63,0.2]
[1771355794862,0.49158078,85.649,85.614,11.68033265]
[1771355795460,0.49158078,85.649,85.62,7.0161133]
[1771355795759,0.49158078,85.649,85.614,11.68033265]
[1771355796145,0.49158078,85.647,85.614,11.68033265]
[1771355796346,0.49158078,85.647,85.612,0.47553164]
[1771355796559,0.49158078,85.639,85.61,0.2]
[1771355797021,0.49158078,85.629,85.596,15.88]
[1771355797143,40.86493554,85.648,85.58,0.2]
[1771355797144,0.49158078,85.609,85.58,0.2]
[1771355797489,0.49158078,85.647,85.601,0.47553164]
[1771355797652,0.49158078,85.647,85.61,7.0161133]
[1771355797982,40.86493554,85.648,85.601,0.47553164]
[1771355797983,0.49158078,85.639,85.601,0.47553164]
[1771355798143,0.49158078,85.629,85.596,15.88]
[1771355798555,0.49158078,85.619,85.585,15.88]
[1771355798850,0.49158078,85.619,85.581,11.68483658]
[1771355799751,7.0161133,85.61,85.58,0.2]
[1771355799952,0.49158078,85.609,85.58,0.2]
[1771355800169,0.49158078,85.607,85.58,0.2]
[1771355801863,0.49158078,85.607,85.58,7.2161133]
[1771355802071,0.49158078,85.607,85.58,0.2]
[1771355802457,11.68142419,85.606,85.58,0.2]
[1771355803480,0.49158078,85.605,85.58,0.2]
[1771355803669,0.49158078,85.628,85.591,0.47553164]
[1771355803853,0.49158078,85.628,85.58,11.88486807]
[1771355803854,0.49158078,85.628,85.6,7.49164494]
[1771355804059,11.67828656,85.629,85.6,7.49164494]
[1771355804472,0.48242152,85.637,85.601,0.48275457]
[1771355804660,0.48242152,85.637,85.61,7.0161133]
[1771355804875,0.48242152,85.635,85.6,22.8961133]
[1771355805064,0.48242152,85.629,85.59,7.0161133]
[1771355806353,0.48242152,85.619,85.58,7.2161133]
[1771355806769,0.48242152,85.619,85.581,11.68483658]
[1771355806970,0.48242152,85.619,85.58,7.2161133]
[1771355806971,7.0161133,85.61,85.58,0.2]
[1771355807174,0.48242152,85.609,85.58,7.2161133]
[1771355807562,0.48242152,85.609,85.581,11.68483658]
[1771355807883,0.48242152,85.609,85.58,7.23171977]
[1771355808259,0.48242152,85.607,85.58,0.2]
[1771355808853,40.88402952,85.608,85.58,0.2]
[1771355808854,0.48242152,85.599,85.58,0.2]
[1771355809059,0.48242152,85.599,85.56,7.03171977]
[1771355809985,0.48242152,85.599,85.571,0.48275457]
[1771355810187,11.68115129,85.608,85.571,0.48275457]
[1771355810389,0.48242152,85.607,85.58,7.03171977]
[1771355811481,0.48242152,85.607,85.574,15.9]
[1771355811660,0.48242152,85.607,85.574,16.38275457]
[1771355812773,0.48212925,85.605,85.575,11.68565585]
[1771355813269,0.48212925,85.599,85.574,15.9]
[1771355813473,0.48212925,85.589,85.559,15.9]
[1771355813861,0.48212925,85.579,85.532,0.48776356]
[1771355814063,0.48212925,85.569,85.54,7.03171977]
[1771355814368,0.48212925,85.569,85.534,0.48776356]
[1771355814369,0.48212925,85.569,85.539,15.9]
[1771355814774,7.03171977,85.57,85.539,15.9]
[1771355814775,0.48212925,85.567,85.539,15.9]
[1771355815587,11.68661181,85.568,85.539,15.9]
[1771355815588,11.6859751,85.573,85.541,0.48776356]
[1771355815792,0.48212925,85.575,85.541,0.48776356]
[1771355815993,7.03171977,85.58,85.541,0.48776356]
[1771355815994,0.48212925,85.573,85.541,0.48776356]
[1771355816202,0.48212925,85.573,85.542,15.92]
[1771355816502,7.03171977,85.56,85.542,15.92]
[1771355816802,0.48212925,85.557,85.53,0.2]
[1771355817391,0.48212925,85.557,85.53,11.89170042]
[1771355818489,0.48212925,85.557,85.53,0.2]
[1771355818784,0.48212925,85.555,85.53,0.2]
[1771355819771,0.48212925,85.549,85.53,0.2]
[1771355820173,0.48212925,85.549,85.507,0.48776356]
[1771355820408,0.48212925,85.548,85.511,0.48776356]
[1771355820572,11.68825097,85.556,85.531,0.48776356]
[1771355820777,0.48212925,85.567,85.533,0.48776356]
[1771355821079,11.68661181,85.568,85.501,0.48776356]
[1771355821080,0.48212925,85.539,85.501,0.48776356]
[1771355821280,0.48212925,85.539,85.49,0.2]
[1771355821281,0.48212925,85.529,85.49,0.2]
[1771355821508,0.48212925,85.529,85.5,7.51948333]
[1771355821802,0.48212925,85.548,85.51,7.51948333]
[1771355822098,0.48212925,85.548,85.511,0.48776356]
[1771355822402,0.48212925,85.56,85.521,0.48776356]
[1771355822692,12.16874106,85.568,85.531,0.48776356]
[1771355822871,12.16874106,85.568,85.532,12.17929421]
[1771355823076,11.68661181,85.568,85.533,0.48776356]
[1771355823277,0.48212925,85.567,85.533,0.48776356]
[1771355823996,12.16753279,85.577,85.541,0.48776356]
[1771355824202,0.48212925,85.576,85.541,0.48776356]
[1771355824405,11.68484801,85.581,85.551,0.48776356]
[1771355825078,11.68429047,85.585,85.553,0.48776356]
[1771355825380,11.68429047,85.585,85.56,7.03171977]
[1771355825588,11.68429047,85.585,85.553,0.48776356]
[1771355825782,0.48212925,85.584,85.553,0.48776356]
[1771355825997,0.48212925,85.584,85.55,7.03171977]
[1771355826199,0.48212925,85.579,85.545,11.6897422]
[1771355826791,0.48212925,85.579,85.55,7.03171977]
[1771355827288,11.6852462,85.578,85.55,7.03171977]
[1771355827488,0.48212925,85.579,85.551,11.68893408]
[1771355828000,0.48212925,85.579,85.55,0.48776356]
[1771355828001,12.16733629,85.579,85.55,0.48776356]
[1771355828300,12.16733629,85.579,85.54,7.03171977]
[1771355828301,0.48212925,85.578,85.548,11.68926945]
[1771355829903,0.48212925,85.576,85.54,11.69043722]
[1771355830291,0.48212925,85.569,85.535,0.48776356]
[1771355830992,0.48212925,85.576,85.55,7.03171977]
[1771355831187,0.48212925,85.576,85.541,0.48776356]
[1771355832015,0.48212925,85.574,85.54,7.03171977]
[1771355832188,0.48212925,85.574,85.534,15.92]
[1771355832189,0.48212925,85.569,85.538,11.6906875]
[1771355832390,0.48212925,85.569,85.532,0.48776356]
[1771355832605,0.48212925,85.569,85.53,7.03171977]
[1771355832606,0.48212925,85.569,85.53,7.51948333]
[1771355832804,0.48212925,85.569,85.532,0.48776356]
[1771355833688,0.48212925,85.569,85.54,7.03171977]
[1771355834388,0.48212925,85.567,85.533,12.17915752]
[1771355834587,0.48212925,85.567,85.534,0.47901038]
[1771355835602,29.21413964,85.575,85.54,7.03171977]
[1771355835603,12.13737935,85.566,85.54,7.03171977]
[1771355835996,12.13737935,85.566,85.536,0.47901038]
[1771355836793,11.68638455,85.57,85.541,0.47901038]
[1771355837189,12.13634943,85.574,85.55,7.03171977]
[1771355837799,12.13519443,85.582,85.551,0.47901038]
[1771355838091,12.13519443,85.582,85.539,15.92]
[1771355838092,0.45049438,85.579,85.542,12.16912862]
[1771355838699,0.45049438,85.579,85.54,7.03171977]
[1771355838899,0.45049438,85.569,85.539,15.92]
[1771355839793,0.45049438,85.567,85.531,11.69166734]
[1771355840906,0.45049438,85.567,85.54,7.03171977]
[1771355841106,0.45049438,85.567,85.532,0.47901038]
[1771355842108,11.68688497,85.566,85.533,11.69139396]
[1771355842305,0.45049438,85.565,85.533,11.69139396]
[1771355842800,0.45049438,85.565,85.533,12.17040434]
[1771355843016,0.45049438,85.565,85.533,0.47901038]
[1771355843307,0.45049438,85.565,85.533,11.69139396]
[1771355843513,0.45049438,85.565,85.534,0.47901038]
[1771355844015,11.68688497,85.566,85.541,0.47901038]
[1771355844314,0.45049438,85.566,85.541,0.47901038]
[1771355844693,0.45049438,85.566,85.533,12.17040434]
[1771355845015,0.45049438,85.566,85.534,0.47901038]
[1771355845497,11.68702156,85.565,85.54,7.03171977]
[1771355845703,12.13751594,85.565,85.54,7.03171977]
[1771355846101,0.45049438,85.564,85.54,7.03171977]
[1771355846294,0.45049438,85.564,85.535,11.69112059]
[1771355846494,0.45049438,85.564,85.535,12.17013097]
[1771355846990,0.45049438,85.559,85.53,7.03171977]
[1771355847511,0.45049438,85.559,85.532,11.69153065]
[1771355847712,0.45049438,85.559,85.533,0.47901038]
[1771355847915,11.68691481,85.566,85.54,7.03171977]
[1771355848215,0.45049438,85.565,85.533,0.47901038]
[1771355849814,0.45049438,85.559,85.52,22.95171977]
[1771355850018,0.45049438,85.557,85.521,0.47901038]
[1771355850197,0.45049438,85.557,85.52,7.03171977]
[1771355850598,0.45049438,85.557,85.515,0.47901038]
[1771355850803,0.45049438,85.557,85.52,7.03171977]
[1771355850996,0.45049438,85.557,85.53,7.03171977]
[1771355851308,0.45049438,85.557,85.531,0.47901038]
[1771355851699,0.45049438,85.563,85.531,0.47901038]
[1771355852309,11.68715815,85.564,85.541,0.47901038]
[1771355853116,0.45049438,85.569,85.541,0.47901038]
[1771355853295,11.68615107,85.572,85.541,0.47901038]
[1771355853815,11.68557242,85.576,85.541,0.47901038]
[1771355854021,12.1360668,85.576,85.541,0.47901038]
[1771355854197,0.45049438,85.575,85.542,11.69016389]
[1771355854402,0.45049438,85.575,85.543,0.47901038]
[1771355855512,11.68579241,85.574,85.545,0.47901038]
[1771355856723,12.13628679,85.574,85.545,0.47901038]
[1771355857221,35.21,85.655,85.545,0.47901038]
[1771355857222,0.45049438,85.608,85.545,0.47901038]
[1771355857419,0.45049438,85.608,85.544,40.91461703]
[1771355857420,0.45049438,85.608,85.571,0.47901038]
[1771355857621,12.13178212,85.607,85.58,7.03171977]
[1771355857813,0.45049438,85.606,85.58,7.03171977]
[1771355858019,0.45049438,85.606,85.576,0.47901038]
[1771355859008,0.45049438,85.606,85.59,7.03171977]
[1771355859215,11.68073394,85.612,85.581,0.47901038]
[1771355859405,0.45049438,85.614,85.59,7.03171977]
[1771355859718,12.13095596,85.614,85.59,7.03171977]
[1771355860222,11.68046158,85.614,85.591,0.47901038]
[1771355860524,0.45049438,85.622,85.6,7.03171977]
[1771355860728,0.45049438,85.63,85.601,0.47901038]
[1771355860914,0.45049438,85.63,85.6,7.03171977]
[1771355861109,0.45049438,85.629,85.593,0.47901038]
[1771355861516,0.45049438,85.647,85.618,0.47901038]
[1771355861731,0.45049438,85.647,85.621,0.47901038]
[1771355862521,0.45049438,85.658,85.631,0.47901038]
[1771355863627,0.1,85.66,85.633,0.47901038]
[1771355863926,0.1,85.66,85.64,7.03171977]
[1771355864311,0.1,85.66,85.64,7.51073015]
[1771355864720,0.1,85.66,85.641,0.46724483]
[1771355865104,0.1,85.66,85.633,0.46724483]
[1771355865310,0.58610893,85.66,85.633,0.46724483]
[1771355866004,11.67419652,85.659,85.633,0.46724483]
[1771355866209,12.16030545,85.659,85.633,0.46724483]
[1771355866431,0.48610893,85.658,85.63,7.03171977]
[1771355866624,0.48610893,85.658,85.631,0.46724483]
[1771355867035,0.48610893,85.658,85.64,7.03171977]
[1771355868033,0.48610893,85.658,85.64,7.02271105]
[1771355868722,0.1,85.66,85.64,7.02271105]
[1771355870218,0.58610893,85.66,85.64,7.02271105]
[1771355870725,0.48610893,85.674,85.65,7.02271105]
[1771355870924,0.48610893,85.674,85.641,11.6766502]
[1771355871238,0.48610893,85.659,85.633,12.14498588]
[1771355871416,0.48610893,85.669,85.64,7.02271105]
[1771355871617,0.48610893,85.669,85.641,0.46724483]
[1771355872218,12.15812875,85.675,85.65,7.02271105]
[1771355872926,0.49525538,85.674,85.65,7.02271105]
[1771355873519,0.49525538,85.674,85.643,0.46724483]
[1771355874434,11.67228881,85.673,85.643,0.46724483]
[1771355874635,0.49525538,85.672,85.643,0.46724483]
[1771355875939,0.49525538,85.669,85.637,6.8]
[1771355876843,0.49525538,85.667,85.637,6.8]
[1771355877023,0.49525538,85.667,85.64,7.02271105]
[1771355879746,0.49525538,85.665,85.64,7.02271105]
[1771355881135,0.49525538,85.663,85.637,6.8]
[1771355881443,0.49525538,85.659,85.637,6.8]
[1771355881744,0.49525538,85.659,85.64,7.02271105]
[1771355883238,40.85730294,85.664,85.64,7.51963465]
[1771355883533,0.49525538,85.664,85.64,7.51963465]
[1771355883732,0.49525538,85.678,85.65,7.02271105]
[1771355883932,0.49525538,85.678,85.651,0.4969236]
[1771355884128,7.02271105,85.69,85.614,4.61729252]
[1771355884129,12.16563711,85.687,85.661,0.4969236]
[1771355884328,12.16563711,85.687,85.67,7.02271105]
[1771355884828,12.16563711,85.687,85.661,0.4969236]
[1771355885337,0.49525538,85.686,85.661,0.4969236]
[1771355885854,6.84827258,85.7,85.661,0.4969236]
[1771355887235,40.84061657,85.699,85.661,0.4969236]
[1771355887942,0.49525538,85.698,85.661,0.4969236]
[1771355888628,0.49525538,85.696,85.661,0.4969236]
[1771355890734,0.49525538,85.689,85.652,15.94]
[1771355891559,0.49525538,85.689,85.65,2.35828331]
[1771355891734,0.49525538,85.689,85.65,2.85520691]
[1771355891928,0.49525538,85.689,85.65,2.35828331]
[1771355892130,0.49525538,85.689,85.65,2.85520691]
[1771355892648,0.49525538,85.687,85.651,0.4969236]
[1771355893549,0.49525538,85.687,85.661,0.4969236]
[1771355894643,29.17258961,85.697,85.671,0.45698556]
[1771355895036,11.66861143,85.7,85.671,0.45698556]
[1771355895235,11.66861143,85.7,85.661,11.67387746]
[1771355895236,12.11872108,85.7,85.68,2.81526887]
[1771355895544,0.45010965,85.699,85.671,0.45698556]
[1771355896135,0.45010965,85.679,85.641,0.45698556]
[1771355896651,0.45010965,85.667,85.633,0.45698556]
[1771355896962,0.45010965,85.66,85.633,0.45698556]
[1771355898645,0.45010965,85.659,85.626,0.45698556]
[1771355898860,0.45010965,85.649,85.618,0.45698556]
[1771355899237,0.45010965,85.649,85.621,0.45698556]
[1771355900245,11.67569587,85.648,85.621,0.45698556]
[1771355900437,0.45010965,85.647,85.613,0.45698556]
[1771355901051,11.67569587,85.648,85.621,0.45698556]
[1771355902869,11.67569587,85.648,85.602,29.2046129]
[1771355902870,0.45010965,85.639,85.605,0.45698556]
[1771355904143,0.45010965,85.629,85.598,0.45698556]
[1771355904749,0.45010965,85.619,85.59,0.45698556]
[1771355904952,0.45010965,85.619,85.591,0.45698556]
[1771355905862,0.45010965,85.609,85.582,0.45698556]
[1771355906370,0.45010965,85.607,85.582,0.45698556]
[1771355906750,0.45010965,85.607,85.571,0.45698556]
[1771355907748,0.45010965,85.599,85.57,0.2]
[1771355908366,0.45010965,85.589,85.554,0.45698556]
[1771355910264,0.45010965,85.587,85.554,0.45698556]
[1771355910477,0.45010965,85.608,85.571,0.45698556]
[1771355910964,11.68101484,85.609,85.581,0.45698556]
[1771355912160,2.35828331,85.62,85.581,0.45698556]
[1771355912358,40.8787769,85.619,85.581,0.45698556]
[1771355913053,41.32888655,85.619,85.581,0.45698556]
[1771355913254,41.32888655,85.619,85.582,0.45698556]
[1771355913661,0.45010965,85.618,85.582,0.45698556]
[1771355914144,11.67992337,85.617,85.582,0.45698556]
[1771355914357,0.45010965,85.609,85.574,15.86]
[1771355914572,0.45010965,85.609,85.575,0.45698556]
[1771355914775,0.45010965,85.599,85.549,0.45698556]
[1771355915070,0.45010965,85.599,85.561,0.45698556]
[1771355916367,2.80839296,85.59,85.561,0.45698556]
[1771355916565,0.45010965,85.589,85.561,0.45698556]
[1771355918570,11.68388091,85.588,85.561,0.45698556]
[1771355919474,0.45010965,85.587,85.561,0.45698556]
[1771355919868,29.20628986,85.598,85.561,0.45698556]
[1771355920071,11.68306189,85.594,85.571,0.45698556]
[1771355920653,11.68197004,85.602,85.571,0.45698556]
[1771355920973,11.68124198,85.608,85.581,0.45698556]
[1771355921773,29.20008577,85.617,85.581,0.45698556]
[1771355922456,11.67965054,85.619,85.591,0.45698556]
[1771355922874,11.67855933,85.627,85.591,0.45698556]
[1771355923676,11.67855933,85.627,85.601,0.45698556]
[1771355923870,17.4,85.645,85.6,2.35828331]
[1771355923871,11.67692289,85.639,85.603,0.45698556]
[1771355924464,40.86923013,85.639,85.603,0.45698556]
[1771355924651,0.46016977,85.638,85.603,0.45698556]
[1771355925469,40.87018461,85.637,85.603,0.45698556]
[1771355925862,11.6771956,85.637,85.604,11.68169711]
[1771355926067,11.6771956,85.637,85.605,0.48817807]
[1771355926268,11.67596852,85.646,85.621,0.48817807]
[1771355926475,12.13613829,85.646,85.621,0.48817807]
[1771355927470,41.32605959,85.646,85.621,0.48817807]
[1771355927786,11.67692289,85.639,85.605,0.48817807]
[1771355927993,0.46016977,85.638,85.605,0.48817807]
[1771355929372,0.46016977,85.638,85.606,0.48817807]
[1771355929904,0.46016977,85.636,85.606,0.48817807]
[1771355930481,0.46016977,85.636,85.599,0.48817807]
[1771355930763,0.46016977,85.629,85.599,0.48817807]
[1771355931181,0.46016977,85.629,85.59,22.84779123]
[1771355931182,7.02779123,85.62,85.591,0.48817807]
[1771355931387,0.46016977,85.619,85.591,0.48817807]
[1771355931764,0.46016977,85.629,85.591,0.48817807]
[1771355932186,0.46016977,85.619,85.591,0.48817807]
[1771355932490,0.46016977,85.627,85.591,0.48817807]
[1771355933192,0.46016977,85.627,85.593,0.45237225]
[1771355933497,11.67842294,85.628,85.593,0.45237225]
[1771355933791,11.67842294,85.628,85.58,29.21213026]
[1771355933792,11.67842294,85.628,85.601,0.45237225]
[1771355934286,7.02779123,85.63,85.601,0.45237225]
[1771355934465,0.46594481,85.635,85.601,0.45237225]
[1771355934671,7.02779123,85.63,85.601,0.45237225]
[1771355935293,0.46594481,85.629,85.601,0.45237225]
[1771355935471,0.46594481,85.629,85.591,0.45237225]
[1771355935798,0.46594481,85.619,85.581,0.45237225]
[1771355936469,0.46594481,85.617,85.581,0.45237225]
[1771355936881,0.46594481,85.609,85.571,0.45237225]
[1771355937478,0.46594481,85.599,85.571,0.45237225]
[1771355937788,0.46594481,85.589,85.564,0.45237225]
[1771355938566,0.46594481,85.589,85.541,29.22546921]
[1771355938567,0.46594481,85.578,85.513,0.45237225]
[1771355938774,7.02779123,85.56,85.513,0.45237225]
[1771355939103,0.46594481,85.569,85.531,0.45237225]
[1771355939470,0.46594481,85.577,85.541,0.45237225]
[1771355939979,7.49373604,85.6,85.561,0.45237225]
[1771355940290,0.46594481,85.599,85.561,0.45237225]
[1771355940798,11.68251594,85.598,85.571,0.45237225]
[1771355941006,29.20109668,85.614,85.581,0.45237225]
[1771355942586,11.67954607,85.62,85.591,0.45237225]
[1771355942891,11.67954607,85.62,85.601,0.45237225]
[1771355943397,12.14549088,85.62,85.591,0.45237225]
[1771355943893,11.67954607,85.62,85.591,0.45237225]
[1771355944885,0.46594481,85.622,85.59,7.02779123]
[1771355945094,0.46594481,85.619,85.59,7.02779123]
[1771355945695,29.19776228,85.623,85.57,7.02779123]
[1771355945696,0.46594481,85.609,85.57,7.02779123]
[1771355945891,0.46594481,85.599,85.566,0.45237225]
[1771355946398,2.3639764,85.59,85.559,0.45237225]
[1771355946593,0.46594481,85.589,85.559,0.45237225]
[1771355946800,40.89836172,85.578,85.546,0.45237225]
[1771355947004,0.46594481,85.569,85.538,0.45237225]
[1771355947177,0.46594481,85.569,85.533,0.45237225]
[1771355947375,41.36430653,85.578,85.541,0.45237225]
[1771355947698,0.46594481,85.559,85.533,0.45237225]
[1771355947904,0.46594481,85.559,85.525,0.45237225]
[1771355948198,0.46594481,85.567,85.531,0.45237225]
[1771355949198,11.68688497,85.566,85.531,0.45237225]
[1771355949383,0.46594481,85.559,85.531,0.45237225]
[1771355951082,12.15282978,85.566,85.533,0.45237225]
[1771355951404,12.15282978,85.566,85.535,0.45237225]
[1771355952116,0.46594481,85.559,85.522,0.45237225]
[1771355953298,0.46594481,85.539,85.497,0.45237225]
[1771355953511,2.3639764,85.53,85.499,0.45237225]
[1771355953680,0.46594481,85.532,85.501,0.45237225]
[1771355955011,2.3639764,85.53,85.501,0.45237225]
[1771355955187,11.69194074,85.529,85.501,0.45237225]
[1771355955590,40.9217926,85.529,85.501,0.45237225]
[1771355955909,11.69194074,85.529,85.501,0.45237225]
[1771355956702,11.691256,85.535,85.511,0.45220036]
[1771355957488,40.91700861,85.539,85.511,0.45220036]
[1771355957801,0.48184665,85.538,85.511,0.45220036]
[1771355958115,40.91700861,85.539,85.491,0.45220036]
[1771355958116,0.48184665,85.529,85.491,0.45220036]
[1771355958398,2.84582305,85.52,85.49,0.2]
[1771355958606,4.7279528,85.5,85.457,0.45220036]
[1771355958899,2.3639764,85.49,85.461,0.45220036]
[1771355959205,2.3639764,85.48,85.453,0.45220036]
[1771355959499,2.3639764,85.49,85.462,0.45220036]
[1771355959692,11.69741136,85.489,85.454,0.45220036]
[1771355959893,7.0546042,85.48,85.454,0.45220036]
[1771355960104,7.0546042,85.47,85.46,1e-08]
[1771355960284,7.0546042,85.47,85.44,0.2]
[1771355960488,0.20639193,85.459,85.428,0.45220036]
[1771355960889,0.20639193,85.467,85.431,0.45220036]
[1771355961510,7.0546042,85.46,85.431,0.45220036]
[1771355961700,11.70151768,85.459,85.431,0.45220036]
[1771355961888,7.0546042,85.45,85.422,0.45220036]
[1771355962509,7.0546042,85.45,85.287,41.10422249]
[1771355962510,7.0546042,85.44,85.427,1e-08]
[1771355963006,0.20639193,85.439,85.427,1e-08]
[1771355963586,0.20639193,85.437,85.427,1e-08]
[1771355963786,10.1061547,85.438,85.427,1e-08]
[1771355964314,39.36713927,85.438,85.427,1e-08]
[1771355966003,39.5735312,85.438,85.427,1e-08]
[1771355966200,0.20639193,85.437,85.427,1e-08]
[1771355966898,39.36713927,85.438,85.427,1e-08]
[1771355967290,0.20639193,85.437,85.427,1e-08]
[1771355967707,11.70466782,85.436,85.427,1e-08]
[1771355969017,0.20639193,85.435,85.427,1e-08]
[1771355969339,0.20639193,85.435,85.39,0.2]
[1771355969501,7.0546042,85.41,85.39,0.2]
[1771355970303,11.70836797,85.409,85.39,0.2]
[1771355970905,7.0546042,85.4,85.36,7.0546042]
[1771355971103,40.97928789,85.409,85.37,7.0546042]
[1771355971402,11.70836797,85.409,85.371,0.45220036]
[1771355971602,17.54,85.415,85.381,0.45220036]
[1771355971603,11.70756838,85.415,85.381,0.45220036]
[1771355971798,11.70562689,85.429,85.391,0.45220036]
[1771355972323,7.0546042,85.42,85.391,0.45220036]
[1771355972922,7.53645085,85.42,85.391,0.45220036]
[1771355973100,0.48184665,85.419,85.391,0.45220036]
[1771355973818,17.54,85.427,85.363,15.68]
[1771355973819,0.48184665,85.409,85.381,0.45220036]
[1771355974399,11.70850505,85.408,85.381,0.45220036]
[1771355975206,109.95560406,85.439,85.354,15.68]
[1771355975207,7.0546042,85.43,85.391,0.45220036]
[1771355975823,7.0546042,85.43,85.401,0.45220036]
[1771355976621,0.48184665,85.459,85.411,0.45220036]
[1771355976829,46.78630559,85.496,85.421,0.45220036]
[1771355976830,0.48184665,85.449,85.421,0.45220036]
[1771355977430,7.0546042,85.45,85.421,0.45220036]
[1771355977927,7.0546042,85.46,85.421,0.45220036]
[1771355978107,7.0546042,85.46,85.431,0.45220036]
[1771355978428,0.48184665,85.459,85.431,0.45220036]
[1771355978631,41.43763779,85.458,85.431,0.45220036]
[1771355979528,41.43763779,85.458,85.411,0.45220036]
[1771355979529,7.0546042,85.45,85.411,0.45220036]
[1771355980603,11.7028871,85.449,85.412,0.45220036]
[1771355981836,7.53645085,85.43,85.404,0.45220036]
[1771355982522,0.48184665,85.428,85.394,0.45220036]
[1771355982710,7.0546042,85.42,85.394,0.45220036]
[1771355983213,11.70562689,85.429,85.394,0.45220036]
[1771355983414,11.70562689,85.429,85.39,18.76545586]
[1771355983415,11.70562689,85.429,85.401,0.45220036]
[1771355983826,11.70493496,85.435,85.401,0.45220036]
[1771355984143,7.53645085,85.43,85.391,0.45220036]
[1771355984913,11.70316102,85.447,85.411,0.48978356]
[1771355985343,40.96106357,85.447,85.411,0.48978356]
[1771355986937,7.0546042,85.44,85.411,0.48978356]
[1771355987617,0.48706168,85.439,85.411,0.48978356]
[1771355988414,11.70425683,85.439,85.411,0.48978356]
[1771355989317,29.25858739,85.445,85.411,0.48978356]
[1771355989736,11.70302406,85.448,85.421,0.48978356]
[1771355990738,7.05921629,85.45,85.421,0.48978356]
[1771355991044,11.7024978,85.452,85.421,0.48978356]
[1771355991419,11.70179154,85.457,85.422,0.48978356]
[1771355992227,0.48706168,85.449,85.422,0.48978356]
[1771355992539,0.48706168,85.449,85.412,0.48978356]
[1771355992736,0.48706168,85.449,85.421,0.48288277]
[1771355992918,7.05921629,85.45,85.421,0.48288277]
[1771355993117,0.48080118,85.449,85.421,0.48288277]
[1771355993838,7.05921629,85.44,85.407,0.48288277]
[1771355994036,7.05921629,85.43,85.398,0.48288277]
[1771355995639,7.05921629,85.43,85.391,27.35083603]
[1771355995640,0.48080118,85.428,85.391,16.12288277]
[1771355995838,0.48080118,85.428,85.392,0.48288277]
[1771355996749,11.70562689,85.429,85.401,0.48288277]
[1771355997646,12.185469,85.436,85.403,0.48288277]
[1771355997829,0.48080118,85.435,85.403,0.48288277]
[1771355999629,11.70494182,85.434,85.403,0.48288277]
[1771356000136,11.70494182,85.434,85.404,0.48288277]
[1771356000434,11.7044145,85.438,85.411,0.48288277]
[1771356002228,11.7044145,85.438,85.413,0.48288277]
[1771356002445,7.05921629,85.46,85.421,0.48288277]
[1771356002653,0.48080118,85.465,85.431,0.48288277]
[1771356003853,11.70083309,85.464,85.431,0.48288277]
[1771356004353,11.70083309,85.464,85.432,0.48288277]
[1771356004654,11.70037426,85.468,85.44,7.05921629]
[1771356004846,11.70037426,85.468,85.441,0.48288277]
[1771356005539,0.48080118,85.459,85.423,0.48288277]
[1771356005736,7.05921629,85.44,85.415,0.48288277]
[1771356006045,12.18505801,85.439,85.406,0.48288277]
[1771356006842,0.48080118,85.429,85.391,0.48288277]
[1771356007044,40.96489892,85.439,85.39,7.05921629]
[1771356007045,0.48080118,85.438,85.401,0.48288277]
[1771356007366,0.48080118,85.438,85.411,0.48288277]
[1771356007953,11.70425683,85.439,85.413,0.48288277]
[1771356008161,0.48080118,85.454,85.42,7.05921629]
[1771356008368,7.05921629,85.45,85.421,0.48288277]
[1771356008528,0.48080118,85.449,85.421,0.48288277]
[1771356009354,0.48080118,85.449,85.403,15.62]
[1771356009355,0.48080118,85.449,85.404,0.48288277]
[1771356009555,0.48080118,85.439,85.405,0.48288277]